[Event "Late-Titled-Tuesday-Blitz-March-19-2024"]
[Site "Chess.com"]
[Date "2024.03.19"]
[Round "9"]
[White "DamianoLew95"]
[Black "RichardLeyvaP"]
[Result "1-0"]
[WhiteElo "2731"]
[BlackElo "2547"]
[TimeControl "180+1"]
[EndTime "15:42:07 PDT"]
[Termination "DamianoLew95 won by checkmate"]

1. e4 {[%clk 0:02:57.8]} 1... e5 {[%clk 0:02:58.7]} 2. Nf3 {[%clk 0:02:56.7]}
2... Nc6 {[%clk 0:02:58.8]} 3. Bc4 {[%clk 0:02:57.2]} 3... Nf6 {[%clk
0:02:58.2]} 4. d3 {[%clk 0:02:56.9]} 4... Bc5 {[%clk 0:02:58.1]} 5. O-O {[%clk
0:02:56.9]} 5... a6 {[%clk 0:02:58.4]} 6. c3 {[%clk 0:02:57.4]} 6... Ba7 {[%clk
0:02:58.6]} 7. a4 {[%clk 0:02:56.9]} 7... d6 {[%clk 0:02:58.8]} 8. b4 {[%clk
0:02:57.3]} 8... Ne7 {[%clk 0:02:58.4]} 9. Re1 {[%clk 0:02:55.9]} 9... Ng6
{[%clk 0:02:58.2]} 10. Nbd2 {[%clk 0:02:54.8]} 10... O-O {[%clk 0:02:49.6]} 11.
Nf1 {[%clk 0:02:50.6]} 11... c6 {[%clk 0:02:46.6]} 12. Bb3 {[%clk 0:02:44.9]}
12... a5 {[%clk 0:02:44.2]} 13. Ng3 {[%clk 0:02:38.3]} 13... h6 {[%clk
0:02:37.2]} 14. d4 {[%clk 0:02:33.8]} 14... axb4 {[%clk 0:02:32.5]} 15. dxe5
{[%clk 0:02:29.8]} 15... Ng4 {[%clk 0:01:51.5]} 16. Ra2 {[%clk 0:02:28.2]} 16...
dxe5 {[%clk 0:01:32.3]} 17. cxb4 {[%clk 0:02:23.7]} 17... Qb6 {[%clk 0:01:26.8]}
18. a5 {[%clk 0:02:21.3]} 18... Qxb4 {[%clk 0:01:12.8]} 19. Ba3 {[%clk
0:02:20.4]} 19... Bxf2+ {[%clk 0:01:12]} 20. Kh1 {[%clk 0:02:06.1]} 20... Bxe1
{[%clk 0:01:10.3]} 21. Bxb4 {[%clk 0:02:04.7]} 21... Bxb4 {[%clk 0:01:09.3]} 22.
h3 {[%clk 0:02:00.7]} 22... Nf6 {[%clk 0:01:08.5]} 23. Nf5 {[%clk 0:01:42.1]}
23... Nxe4 {[%clk 0:00:58.1]} 24. g4 {[%clk 0:01:15.6]} 24... Nc3 {[%clk
0:00:55.8]} 25. Qc2 {[%clk 0:01:08.7]} 25... Nxa2 {[%clk 0:00:55.7]} 26. Nxh6+
{[%clk 0:01:09]} 26... Kh8 {[%clk 0:00:09.4]} 27. Nxf7+ {[%clk 0:01:07.6]} 27...
Rxf7 {[%clk 0:00:08.9]} 28. Qxg6 {[%clk 0:01:07.8]} 28... Rxf3 {[%clk
0:00:03.7]} 29. Qh5# {[%clk 0:01:07.6]} 1-0

[Event "Late-Titled-Tuesday-Blitz-March-19-2024"]
[Site "Chess.com"]
[Date "2024.03.19"]
[Round "9"]
[White "dropstoneDP"]
[Black "AlexeiShirov"]
[Result "1/2-1/2"]
[WhiteElo "2982"]
[BlackElo "2858"]
[TimeControl "180+1"]
[EndTime "15:42:11 PDT"]
[Termination "Game drawn by repetition"]

1. e4 {[%clk 0:02:59.4]} 1... e5 {[%clk 0:02:59.5]} 2. Nf3 {[%clk 0:02:59.8]}
2... Nc6 {[%clk 0:02:59]} 3. Bb5 {[%clk 0:02:58.7]} 3... a6 {[%clk 0:02:58.3]}
4. Ba4 {[%clk 0:02:59.4]} 4... Nf6 {[%clk 0:02:57.7]} 5. O-O {[%clk 0:03:00.1]}
5... b5 {[%clk 0:02:57.4]} 6. Bb3 {[%clk 0:03:00.6]} 6... Bc5 {[%clk 0:02:56.8]}
7. a4 {[%clk 0:03:00.8]} 7... Rb8 {[%clk 0:02:56.3]} 8. Nxe5 {[%clk 0:03:01.2]}
8... Nxe5 {[%clk 0:02:53.9]} 9. d4 {[%clk 0:03:01.7]} 9... Bxd4 {[%clk
0:02:53.7]} 10. Qxd4 {[%clk 0:03:02.6]} 10... d6 {[%clk 0:02:53.5]} 11. f4
{[%clk 0:03:02]} 11... Nc6 {[%clk 0:02:52.6]} 12. Qd3 {[%clk 0:03:00.4]} 12...
O-O {[%clk 0:02:44.9]} 13. Nc3 {[%clk 0:03:00.7]} 13... Nb4 {[%clk 0:02:43.6]}
14. Qd2 {[%clk 0:02:56.5]} 14... c5 {[%clk 0:02:42.9]} 15. axb5 {[%clk
0:02:55.3]} 15... axb5 {[%clk 0:02:41.9]} 16. e5 {[%clk 0:02:54.8]} 16... dxe5
{[%clk 0:02:38.5]} 17. fxe5 {[%clk 0:02:55.7]} 17... c4 {[%clk 0:02:32.2]} 18.
exf6 {[%clk 0:02:45.4]} 18... Qxd2 {[%clk 0:02:30.8]} 19. Bxd2 {[%clk
0:02:44.8]} 19... cxb3 {[%clk 0:02:30.4]} 20. fxg7 {[%clk 0:02:42.2]} 20... Re8
{[%clk 0:02:25.3]} 21. cxb3 {[%clk 0:02:40.8]} 21... Bb7 {[%clk 0:02:11.8]} 22.
Rae1 {[%clk 0:02:32.3]} 22... Nd3 {[%clk 0:02:09.8]} 23. Rxe8+ {[%clk
0:02:30.9]} 23... Rxe8 {[%clk 0:02:09.1]} 24. b4 {[%clk 0:02:13.4]} 24... Nxb4
{[%clk 0:01:52.9]} 25. Rf5 {[%clk 0:02:11.6]} 25... Bc6 {[%clk 0:01:45.5]} 26.
Nxb5 {[%clk 0:02:01.8]} 26... Re2 {[%clk 0:01:39.1]} 27. Bxb4 {[%clk 0:01:58.8]}
27... Rxg2+ {[%clk 0:01:34.5]} 28. Kf1 {[%clk 0:01:58.6]} 28... Rxb2 {[%clk
0:01:33.3]} 29. Bc3 {[%clk 0:00:18.8]} 29... Rxb5 {[%clk 0:01:22.6]} 30. Rxb5
{[%clk 0:00:12.7]} 30... Bxb5+ {[%clk 0:01:22]} 31. Kf2 {[%clk 0:00:13.6]} 31...
f5 {[%clk 0:01:19.8]} 32. Ke3 {[%clk 0:00:13.6]} 32... Bc6 {[%clk 0:01:19.5]}
33. Kf4 {[%clk 0:00:14.2]} 33... Be4 {[%clk 0:01:19.3]} 34. Bd4 {[%clk
0:00:14.6]} 34... Bd3 {[%clk 0:01:19.1]} 35. Bc3 {[%clk 0:00:15.5]} 35... Be4
{[%clk 0:01:19.1]} 36. Bd4 {[%clk 0:00:16.4]} 36... Bd3 {[%clk 0:01:19.1]} 37.
Bc3 {[%clk 0:00:17.3]} 37... Be4 {[%clk 0:01:19.1]} 1/2-1/2

[Event "Late-Titled-Tuesday-Blitz-March-19-2024"]
[Site "Chess.com"]
[Date "2024.03.19"]
[Round "9"]
[White "DeTimmerman"]
[Black "masnyszachistaaa"]
[Result "1-0"]
[WhiteElo "2756"]
[BlackElo "2566"]
[TimeControl "180+1"]
[EndTime "15:42:17 PDT"]
[Termination "DeTimmerman won on time"]

1. b4 {[%clk 0:02:59.8]} 1... d5 {[%clk 0:02:57.3]} 2. Bb2 {[%clk 0:03:00.2]}
2... Nf6 {[%clk 0:02:54.4]} 3. e3 {[%clk 0:02:59.7]} 3... g6 {[%clk 0:02:46.3]}
4. c4 {[%clk 0:02:59.6]} 4... c6 {[%clk 0:02:44.9]} 5. a4 {[%clk 0:02:59.7]}
5... Bg7 {[%clk 0:02:39.6]} 6. Nf3 {[%clk 0:03:00.2]} 6... O-O {[%clk
0:02:37.8]} 7. Be2 {[%clk 0:03:00.2]} 7... Na6 {[%clk 0:02:22.3]} 8. b5 {[%clk
0:02:58]} 8... Nc5 {[%clk 0:02:22.4]} 9. O-O {[%clk 0:02:57.7]} 9... Bf5 {[%clk
0:02:12.7]} 10. d4 {[%clk 0:02:55.7]} 10... Nce4 {[%clk 0:02:06]} 11. Nc3 {[%clk
0:02:56.6]} 11... Nxc3 {[%clk 0:02:02.6]} 12. Bxc3 {[%clk 0:02:57.5]} 12... Ne4
{[%clk 0:02:02.6]} 13. Bb4 {[%clk 0:02:57.7]} 13... c5 {[%clk 0:01:44.8]} 14.
dxc5 {[%clk 0:02:56.9]} 14... Bxa1 {[%clk 0:01:41]} 15. Qxa1 {[%clk 0:02:57.8]}
15... dxc4 {[%clk 0:01:37]} 16. Bxc4 {[%clk 0:02:54.2]} 16... Qc7 {[%clk
0:01:30.9]} 17. Rc1 {[%clk 0:02:53.4]} 17... Rac8 {[%clk 0:01:13.1]} 18. Nd4
{[%clk 0:02:52.6]} 18... Qe5 {[%clk 0:00:57.2]} 19. c6 {[%clk 0:02:52.3]} 19...
b6 {[%clk 0:00:35.4]} 20. Nxf5 {[%clk 0:02:41.6]} 20... Qxf5 {[%clk 0:00:26.5]}
21. f3 {[%clk 0:02:25.8]} 21... Nd6 {[%clk 0:00:23.5]} 22. Bf1 {[%clk
0:02:26.5]} 22... Rfd8 {[%clk 0:00:20.3]} 23. Qc3 {[%clk 0:02:08.7]} 23... Rc7
{[%clk 0:00:20.4]} 24. Ba3 {[%clk 0:02:08]} 24... Ne8 {[%clk 0:00:19.9]} 25. Bb2
{[%clk 0:02:06.2]} 25... Nf6 {[%clk 0:00:19.5]} 26. e4 {[%clk 0:01:53.6]} 26...
Qg5 {[%clk 0:00:15.8]} 27. Qe5 {[%clk 0:01:49.2]} 27... Qxe5 {[%clk 0:00:15.5]}
28. Bxe5 {[%clk 0:01:50.1]} 28... Rcc8 {[%clk 0:00:16]} 29. Ra1 {[%clk
0:01:42.5]} 29... Ne8 {[%clk 0:00:15.9]} 30. a5 {[%clk 0:01:42.8]} 30... Nc7
{[%clk 0:00:14.9]} 31. axb6 {[%clk 0:01:42.2]} 31... axb6 {[%clk 0:00:15.8]} 32.
Ra7 {[%clk 0:01:42.3]} 32... Ne6 {[%clk 0:00:09.9]} 33. Rxe7 {[%clk 0:01:42]}
33... Rd1 {[%clk 0:00:08.8]} 34. Kf2 {[%clk 0:01:37.2]} 34... Rb1 {[%clk
0:00:08.8]} 35. Bc4 {[%clk 0:01:34.2]} 35... Kf8 {[%clk 0:00:05.7]} 36. Rb7
{[%clk 0:01:32.9]} 36... Nd8 {[%clk 0:00:01.4]} 37. Rxb6 {[%clk 0:01:31.1]}
37... Rb4 {[%clk 0:00:01]} 38. Bd6+ {[%clk 0:01:30]} 1-0

[Event "Late-Titled-Tuesday-Blitz-March-19-2024"]
[Site "Chess.com"]
[Date "2024.03.19"]
[Round "9"]
[White "jcibarra"]
[Black "kingofthenil"]
[Result "1-0"]
[WhiteElo "2947"]
[BlackElo "2782"]
[TimeControl "180+1"]
[EndTime "15:42:19 PDT"]
[Termination "jcibarra won on time"]

1. e4 {[%clk 0:03:00.9]} 1... Nc6 {[%clk 0:03:00]} 2. Nf3 {[%clk 0:03:00.7]}
2... d5 {[%clk 0:03:00.7]} 3. exd5 {[%clk 0:03:00.6]} 3... Qxd5 {[%clk
0:03:01.6]} 4. d4 {[%clk 0:03:00.7]} 4... Bg4 {[%clk 0:03:01.4]} 5. Be2 {[%clk
0:03:00.6]} 5... O-O-O {[%clk 0:03:01.9]} 6. c4 {[%clk 0:03:00.6]} 6... Qh5
{[%clk 0:02:59]} 7. Be3 {[%clk 0:03:00.5]} 7... e5 {[%clk 0:02:55.4]} 8. d5
{[%clk 0:03:00.1]} 8... Nf6 {[%clk 0:02:55.9]} 9. Qa4 {[%clk 0:02:54]} 9... Nd4
{[%clk 0:02:55.4]} 10. Qxa7 {[%clk 0:02:37.3]} 10... Nc2+ {[%clk 0:02:49.9]} 11.
Kd2 {[%clk 0:02:33.5]} 11... Nxe3 {[%clk 0:01:37.2]} 12. fxe3 {[%clk 0:02:27.7]}
12... Ne4+ {[%clk 0:01:37.5]} 13. Kc1 {[%clk 0:02:25.3]} 13... Bc5 {[%clk
0:01:37.5]} 14. Qa8+ {[%clk 0:02:23.2]} 14... Kd7 {[%clk 0:01:37.9]} 15. Qa4+
{[%clk 0:02:18.4]} 15... Ke7 {[%clk 0:01:35.5]} 16. Qb3 {[%clk 0:01:54.2]} 16...
Ng3 {[%clk 0:01:07.4]} 17. Re1 {[%clk 0:01:38.9]} 17... Nxe2+ {[%clk 0:01:07.3]}
18. Rxe2 {[%clk 0:01:39.2]} 18... Bxf3 {[%clk 0:00:58.8]} 19. gxf3 {[%clk
0:01:39.8]} 19... Qxf3 {[%clk 0:00:59.7]} 20. Kd2 {[%clk 0:01:39.9]} 20... Rd6
{[%clk 0:00:32.9]} 21. Qxb7 {[%clk 0:01:20.3]} 21... Bb6 {[%clk 0:00:32.2]} 22.
Nc3 {[%clk 0:01:18.2]} 22... Rhd8 {[%clk 0:00:30]} 23. Rae1 {[%clk 0:01:08.2]}
23... R8d7 {[%clk 0:00:18.7]} 24. Qa8 {[%clk 0:01:04.7]} 24... c6 {[%clk
0:00:16.6]} 25. Kc2 {[%clk 0:01:02]} 25... cxd5 {[%clk 0:00:09.1]} 26. cxd5
{[%clk 0:00:53.2]} 26... Rc7 {[%clk 0:00:03.4]} 27. Kb1 {[%clk 0:00:52]} 1-0

[Event "Late-Titled-Tuesday-Blitz-March-19-2024"]
[Site "Chess.com"]
[Date "2024.03.19"]
[Round "9"]
[White "IMRosen"]
[Black "ATM622"]
[Result "0-1"]
[WhiteElo "2618"]
[BlackElo "2522"]
[TimeControl "180+1"]
[EndTime "15:42:19 PDT"]
[Termination "ATM622 won by resignation"]

1. d4 {[%clk 0:03:00.9]} 1... Nf6 {[%clk 0:02:59.4]} 2. Bf4 {[%clk 0:03:00.2]}
2... e6 {[%clk 0:02:58.2]} 3. e3 {[%clk 0:03:00.7]} 3... d5 {[%clk 0:02:58.2]}
4. Nf3 {[%clk 0:03:01.1]} 4... Bd6 {[%clk 0:02:58.2]} 5. Ne5 {[%clk 0:03:01.8]}
5... O-O {[%clk 0:02:57.6]} 6. Nd2 {[%clk 0:03:02.4]} 6... c6 {[%clk 0:02:56.7]}
7. Bd3 {[%clk 0:03:00.5]} 7... Qc7 {[%clk 0:02:54.3]} 8. h4 {[%clk 0:02:58.1]}
8... Nbd7 {[%clk 0:02:52.2]} 9. Ndf3 {[%clk 0:02:57.6]} 9... Ne4 {[%clk
0:02:52.2]} 10. Nxd7 {[%clk 0:02:31.7]} 10... Bxd7 {[%clk 0:02:50.7]} 11. Bxd6
{[%clk 0:02:27]} 11... Qxd6 {[%clk 0:02:44.5]} 12. Ng5 {[%clk 0:02:27.3]} 12...
f5 {[%clk 0:02:42.5]} 13. Nf3 {[%clk 0:02:03.2]} 13... Qb4+ {[%clk 0:02:38.5]}
14. Kf1 {[%clk 0:01:55.9]} 14... Qxb2 {[%clk 0:02:38.1]} 15. Rb1 {[%clk
0:01:55.1]} 15... Qxa2 {[%clk 0:02:38.1]} 16. Rxb7 {[%clk 0:01:55.4]} 16... Rfd8
{[%clk 0:02:29]} 17. Kg1 {[%clk 0:01:38.6]} 17... a5 {[%clk 0:02:25.2]} 18. Bxe4
{[%clk 0:01:37.1]} 18... dxe4 {[%clk 0:02:24.2]} 19. Ne5 {[%clk 0:01:37.5]}
19... Be8 {[%clk 0:02:22.9]} 20. h5 {[%clk 0:01:24.2]} 20... h6 {[%clk 0:02:23]}
21. Kh2 {[%clk 0:01:03.8]} 21... a4 {[%clk 0:02:19.4]} 22. f4 {[%clk 0:00:37.5]}
22... c5 {[%clk 0:02:17.8]} 23. c3 {[%clk 0:00:31.3]} 23... cxd4 {[%clk
0:02:16.8]} 24. cxd4 {[%clk 0:00:31]} 24... Rac8 {[%clk 0:02:13.8]} 25. Qe1
{[%clk 0:00:31.1]} 25... Rb8 {[%clk 0:02:10]} 26. Re7 {[%clk 0:00:29.4]} 26...
Qa3 {[%clk 0:02:09.5]} 27. Ra7 {[%clk 0:00:27.7]} 27... Qf8 {[%clk 0:02:01.5]}
28. Qa5 {[%clk 0:00:21.3]} 28... Qf6 {[%clk 0:01:58.4]} 29. g3 {[%clk
0:00:20.4]} 29... Rb2+ {[%clk 0:01:57.3]} 30. Kh3 {[%clk 0:00:19.2]} 30... Rc8
{[%clk 0:01:53]} 31. Rc7 {[%clk 0:00:12.6]} 31... Rxc7 {[%clk 0:01:48.7]} 32.
Qxc7 {[%clk 0:00:13.5]} 32... Bxh5 {[%clk 0:01:48.9]} 33. Qc3 {[%clk 0:00:05.6]}
33... Bg4+ {[%clk 0:01:43.3]} 34. Nxg4 {[%clk 0:00:05.9]} 34... fxg4+ {[%clk
0:01:43.5]} 35. Kxg4 {[%clk 0:00:06.8]} 35... Qf5+ {[%clk 0:01:44]} 36. Kh4
{[%clk 0:00:07.4]} 36... h5 {[%clk 0:01:40.2]} 37. Qc8+ {[%clk 0:00:02.6]} 37...
Kh7 {[%clk 0:01:40.3]} 38. Qxe6 {[%clk 0:00:01.8]} 38... Qxe6 {[%clk 0:01:40.5]}
39. Kxh5 {[%clk 0:00:01.3]} 39... Qh6+ {[%clk 0:01:40.5]} 40. Kg4 {[%clk
0:00:01.5]} 40... Qxh1 {[%clk 0:01:40.8]} 41. Kf5 {[%clk 0:00:02.1]} 41... Qh3+
{[%clk 0:01:40.4]} 42. g4 {[%clk 0:00:02.4]} 42... Qf3 {[%clk 0:01:37.8]} 43. g5
{[%clk 0:00:02.3]} 43... Rb5+ {[%clk 0:01:38]} 44. d5 {[%clk 0:00:01.6]} 44...
Rxd5+ {[%clk 0:01:37.3]} 45. Ke6 {[%clk 0:00:02.5]} 45... Rb5 {[%clk 0:01:37.1]}
46. g6+ {[%clk 0:00:02.1]} 46... Kxg6 {[%clk 0:01:37.2]} 47. f5+ {[%clk
0:00:02.8]} 47... Qxf5+ {[%clk 0:01:37.5]} 0-1

[Event "Late-Titled-Tuesday-Blitz-March-19-2024"]
[Site "Chess.com"]
[Date "2024.03.19"]
[Round "9"]
[White "Navyblue1"]
[Black "protectiago"]
[Result "1-0"]
[WhiteElo "2217"]
[BlackElo "2067"]
[TimeControl "180+1"]
[EndTime "15:42:19 PDT"]
[Termination "Navyblue1 won by resignation"]

1. d4 {[%clk 0:02:58.8]} 1... Nf6 {[%clk 0:02:51.8]} 2. c4 {[%clk 0:02:57.8]}
2... g6 {[%clk 0:02:51.3]} 3. Nc3 {[%clk 0:02:57.9]} 3... d5 {[%clk 0:02:51.8]}
4. Nf3 {[%clk 0:02:57.2]} 4... Bg7 {[%clk 0:02:51.3]} 5. Qb3 {[%clk 0:02:56]}
5... dxc4 {[%clk 0:02:50.4]} 6. Qxc4 {[%clk 0:02:56.9]} 6... O-O {[%clk
0:02:50]} 7. Bf4 {[%clk 0:02:55.3]} 7... Na6 {[%clk 0:02:44.1]} 8. e4 {[%clk
0:02:50.9]} 8... c5 {[%clk 0:02:41.8]} 9. d5 {[%clk 0:02:42.4]} 9... Nb4 {[%clk
0:02:36.1]} 10. Qb3 {[%clk 0:02:35.9]} 10... e6 {[%clk 0:01:47.5]} 11. a3 {[%clk
0:02:28.8]} 11... Qa5 {[%clk 0:01:30.5]} 12. Rd1 {[%clk 0:02:04.5]} 12... Na6
{[%clk 0:01:27.8]} 13. Bd2 {[%clk 0:01:48.6]} 13... Qb6 {[%clk 0:01:12.5]} 14.
Qxb6 {[%clk 0:01:32.1]} 14... axb6 {[%clk 0:01:12.6]} 15. d6 {[%clk 0:01:29]}
15... Nd7 {[%clk 0:00:46.9]} 16. Bb5 {[%clk 0:01:23.3]} 16... Nab8 {[%clk
0:00:43.7]} 17. O-O {[%clk 0:01:17.1]} 17... Nc6 {[%clk 0:00:43.9]} 18. Rfe1
{[%clk 0:01:11.1]} 18... Nce5 {[%clk 0:00:16.2]} 19. Nxe5 {[%clk 0:01:09.5]}
19... Nxe5 {[%clk 0:00:14.5]} 20. Bf4 {[%clk 0:00:55.6]} 20... Nc6 {[%clk
0:00:13.8]} 21. d7 {[%clk 0:00:51.8]} 21... Bxd7 {[%clk 0:00:13.5]} 22. Rxd7
{[%clk 0:00:51.6]} 22... Nd4 {[%clk 0:00:13.2]} 23. Rxb7 {[%clk 0:00:46.1]}
23... e5 {[%clk 0:00:12.4]} 24. Be3 {[%clk 0:00:44]} 24... Nc2 {[%clk
0:00:12.6]} 25. Re2 {[%clk 0:00:41.9]} 25... Rfd8 {[%clk 0:00:12.3]} 26. Rxc2
{[%clk 0:00:41.7]} 1-0

[Event "Late-Titled-Tuesday-Blitz-March-19-2024"]
[Site "Chess.com"]
[Date "2024.03.19"]
[Round "9"]
[White "1g60-1"]
[Black "sacrifoice"]
[Result "1-0"]
[WhiteElo "2379"]
[BlackElo "2242"]
[TimeControl "180+1"]
[EndTime "15:42:25 PDT"]
[Termination "1g60-1 won by resignation"]

1. e4 {[%clk 0:03:00.9]} 1... c5 {[%clk 0:02:59.9]} 2. d4 {[%clk 0:03:01.1]}
2... d6 {[%clk 0:03:00.4]} 3. c3 {[%clk 0:03:01.9]} 3... cxd4 {[%clk 0:03:00.4]}
4. cxd4 {[%clk 0:03:01.4]} 4... Nf6 {[%clk 0:03:01.3]} 5. Nc3 {[%clk 0:03:01.7]}
5... g6 {[%clk 0:03:01]} 6. Nf3 {[%clk 0:03:01.8]} 6... Bg7 {[%clk 0:03:01.2]}
7. Bd3 {[%clk 0:03:01.8]} 7... O-O {[%clk 0:03:01.3]} 8. O-O {[%clk 0:03:02.2]}
8... Nc6 {[%clk 0:03:01.6]} 9. h3 {[%clk 0:03:02.3]} 9... Bd7 {[%clk 0:03:00.8]}
10. Bg5 {[%clk 0:03:02.2]} 10... a6 {[%clk 0:02:59.4]} 11. Rc1 {[%clk
0:03:01.9]} 11... Rc8 {[%clk 0:02:59.3]} 12. Qd2 {[%clk 0:03:01.8]} 12... e5
{[%clk 0:02:53.5]} 13. d5 {[%clk 0:02:51.4]} 13... Ne7 {[%clk 0:02:40.7]} 14.
Bh6 {[%clk 0:02:46]} 14... Nh5 {[%clk 0:02:36.2]} 15. Bxg7 {[%clk 0:02:44.3]}
15... Kxg7 {[%clk 0:02:34.3]} 16. Ne2 {[%clk 0:02:40.6]} 16... Ng8 {[%clk
0:02:22.6]} 17. Qb4 {[%clk 0:02:38.2]} 17... Rxc1 {[%clk 0:02:10.7]} 18. Rxc1
{[%clk 0:02:36.2]} 18... Qb8 {[%clk 0:02:10.7]} 19. Qb6 {[%clk 0:02:27.8]} 19...
Rc8 {[%clk 0:01:42.4]} 20. Rxc8 {[%clk 0:02:23]} 20... Bxc8 {[%clk 0:01:42.3]}
21. Qd8 {[%clk 0:02:20.7]} 21... Nhf6 {[%clk 0:01:36]} 22. Nd2 {[%clk
0:02:04.2]} 22... b5 {[%clk 0:01:29.7]} 23. Nb3 {[%clk 0:01:57]} 23... Nd7
{[%clk 0:01:29.6]} 24. Na5 {[%clk 0:01:45.2]} 24... Ngf6 {[%clk 0:01:19.7]} 25.
Nc6 {[%clk 0:01:36.6]} 25... Qb7 {[%clk 0:01:19.5]} 26. Nc1 {[%clk 0:01:08]}
26... h5 {[%clk 0:00:51.9]} 27. Nb3 {[%clk 0:01:06.5]} 27... Nc5 {[%clk
0:00:45.5]} 28. Nxc5 {[%clk 0:00:42.7]} 28... dxc5 {[%clk 0:00:46.4]} 29. Nxe5
{[%clk 0:00:38]} 29... c4 {[%clk 0:00:42.6]} 30. Bc2 {[%clk 0:00:37.2]} 30...
Bd7 {[%clk 0:00:37.6]} 31. Qe7 {[%clk 0:00:32.1]} 31... Qc8 {[%clk 0:00:35.5]}
32. Qxf7+ {[%clk 0:00:31.9]} 1-0

[Event "Late-Titled-Tuesday-Blitz-March-19-2024"]
[Site "Chess.com"]
[Date "2024.03.19"]
[Round "9"]
[White "chessamical"]
[Black "cthake"]
[Result "1-0"]
[WhiteElo "2270"]
[BlackElo "1832"]
[TimeControl "180+1"]
[EndTime "15:42:25 PDT"]
[Termination "chessamical won on time"]

1. d4 {[%clk 0:02:41.7]} 1... e6 {[%clk 0:02:58.6]} 2. Bf4 {[%clk 0:02:38.4]}
2... f5 {[%clk 0:02:57.7]} 3. e3 {[%clk 0:02:37.1]} 3... Nf6 {[%clk 0:02:57]} 4.
Nf3 {[%clk 0:02:35.5]} 4... g6 {[%clk 0:02:51.5]} 5. c4 {[%clk 0:02:32.1]} 5...
Bg7 {[%clk 0:02:48.8]} 6. Nc3 {[%clk 0:02:32.1]} 6... O-O {[%clk 0:02:45]} 7.
Be2 {[%clk 0:02:29]} 7... d6 {[%clk 0:02:40.3]} 8. Rc1 {[%clk 0:02:24.8]} 8...
Qe8 {[%clk 0:02:03.9]} 9. c5 {[%clk 0:02:19.2]} 9... Nh5 {[%clk 0:01:33.8]} 10.
Bg5 {[%clk 0:02:18.4]} 10... d5 {[%clk 0:01:14.4]} 11. Nb5 {[%clk 0:02:06.1]}
11... Na6 {[%clk 0:01:11.3]} 12. Ne5 {[%clk 0:01:59.9]} 12... Bd7 {[%clk
0:01:00.3]} 13. a4 {[%clk 0:01:35.6]} 13... Nf6 {[%clk 0:00:58.4]} 14. O-O
{[%clk 0:01:29.4]} 14... h6 {[%clk 0:00:54.1]} 15. Bxf6 {[%clk 0:01:23.5]} 15...
Bxf6 {[%clk 0:00:54]} 16. f4 {[%clk 0:01:12.8]} 16... Bg7 {[%clk 0:00:22.1]} 17.
Rf3 {[%clk 0:01:07.1]} 17... Nb4 {[%clk 0:00:18.4]} 18. Rg3 {[%clk 0:01:03.9]}
18... Kh7 {[%clk 0:00:13.9]} 19. Nxc7 {[%clk 0:01:03.7]} 19... Qe7 {[%clk
0:00:11.8]} 20. Nxg6 {[%clk 0:00:59.6]} 20... Qf7 {[%clk 0:00:07.2]} 21. Nxa8
{[%clk 0:00:51.7]} 21... Rxa8 {[%clk 0:00:07.1]} 22. Ne5 {[%clk 0:00:50.9]}
22... Qe7 {[%clk 0:00:06.4]} 23. Qb3 {[%clk 0:00:46.2]} 23... a5 {[%clk
0:00:05.5]} 24. Bb5 {[%clk 0:00:41.7]} 24... Bxb5 {[%clk 0:00:01.8]} 25. axb5
{[%clk 0:00:41.2]} 1-0

[Event "Late-Titled-Tuesday-Blitz-March-19-2024"]
[Site "Chess.com"]
[Date "2024.03.19"]
[Round "9"]
[White "aistrel"]
[Black "Evgeny81"]
[Result "1-0"]
[WhiteElo "2662"]
[BlackElo "2765"]
[TimeControl "180+1"]
[EndTime "15:42:26 PDT"]
[Termination "aistrel won by resignation"]

1. d4 {[%clk 0:03:00.9]} 1... c5 {[%clk 0:02:57]} 2. d5 {[%clk 0:03:00.7]} 2...
g6 {[%clk 0:02:57.6]} 3. e4 {[%clk 0:02:59.4]} 3... Bg7 {[%clk 0:02:58.1]} 4.
Nc3 {[%clk 0:02:59.8]} 4... d6 {[%clk 0:02:58.7]} 5. Be3 {[%clk 0:02:56]} 5...
Nf6 {[%clk 0:02:58.1]} 6. Qd2 {[%clk 0:02:53.6]} 6... a6 {[%clk 0:02:50.7]} 7.
Bh6 {[%clk 0:02:47.9]} 7... Bxh6 {[%clk 0:02:49.2]} 8. Qxh6 {[%clk 0:02:48.8]}
8... b5 {[%clk 0:02:47.9]} 9. f3 {[%clk 0:02:47.5]} 9... Nbd7 {[%clk 0:02:43.4]}
10. a4 {[%clk 0:02:37.8]} 10... b4 {[%clk 0:02:40.9]} 11. Nd1 {[%clk 0:02:38.4]}
11... Ne5 {[%clk 0:02:35.3]} 12. Ne3 {[%clk 0:02:34.7]} 12... b3 {[%clk
0:02:29.1]} 13. c3 {[%clk 0:02:33.8]} 13... Qa5 {[%clk 0:02:18.2]} 14. Nc4
{[%clk 0:02:32.3]} 14... Nxc4 {[%clk 0:02:17.3]} 15. Bxc4 {[%clk 0:02:33.2]}
15... Bd7 {[%clk 0:02:15.3]} 16. Ne2 {[%clk 0:02:30.7]} 16... Bb5 {[%clk
0:02:14.8]} 17. Bxb3 {[%clk 0:02:25.4]} 17... Bxe2 {[%clk 0:02:13]} 18. Kxe2
{[%clk 0:02:26.3]} 18... Rb8 {[%clk 0:02:13.5]} 19. Ra3 {[%clk 0:01:59.9]} 19...
c4 {[%clk 0:02:11.8]} 20. Bc2 {[%clk 0:02:00.3]} 20... Rxb2 {[%clk 0:02:11.1]}
21. Qc1 {[%clk 0:02:01]} 21... Rb7 {[%clk 0:01:53.7]} 22. Qh6 {[%clk 0:01:56.3]}
22... Rb2 {[%clk 0:01:40.3]} 23. Qc1 {[%clk 0:01:55.7]} 23... Qb6 {[%clk
0:01:40.6]} 24. a5 {[%clk 0:01:55.5]} 24... Qb7 {[%clk 0:01:38.6]} 25. Ra1
{[%clk 0:01:48.2]} 25... O-O {[%clk 0:01:35.3]} 26. Rb1 {[%clk 0:01:48]} 26...
Rb5 {[%clk 0:01:30]} 27. Ba4 {[%clk 0:01:42.7]} 27... Rxb1 {[%clk 0:01:03.2]}
28. Qxb1 {[%clk 0:01:42.4]} 28... Qc8 {[%clk 0:01:03.9]} 29. Qb6 {[%clk
0:01:38.4]} 29... e6 {[%clk 0:01:03.8]} 30. Qxd6 {[%clk 0:01:28]} 30... exd5
{[%clk 0:00:59.6]} 31. Qxf6 {[%clk 0:01:26.4]} 31... dxe4 {[%clk 0:00:59.5]} 32.
fxe4 {[%clk 0:01:22.1]} 32... Qc5 {[%clk 0:00:49.4]} 33. Rf1 {[%clk 0:01:12.4]}
33... Qxa5 {[%clk 0:00:46.4]} 34. Bc6 {[%clk 0:01:09.5]} 34... Qa2+ {[%clk
0:00:44.1]} 35. Ke3 {[%clk 0:01:10]} 35... Qxg2 {[%clk 0:00:39.1]} 36. Bd5
{[%clk 0:01:09]} 36... Qh3+ {[%clk 0:00:39.3]} 37. Rf3 {[%clk 0:01:08.9]} 37...
Qd7 {[%clk 0:00:39.1]} 38. h4 {[%clk 0:01:06.7]} 38... Qa7+ {[%clk 0:00:27]} 39.
Ke2 {[%clk 0:01:05.6]} 1-0